Cogmind - Beta 13 @@@ ROGUE MODE // 2024.03.31 @ 14:43:01 Player: terics Result: Destroyed by ZT-68Y(R) with Subdweller Machine Gun Performance ------------- Evolutions (0) 0 Regions Visited (3) 600 Robots Destroyed (11) 55 Value Destroyed (275) 275 Prototype IDs (0) 0 Alien Tech Used (0) 0 Bonus (0) 0 TOTAL SCORE: 930 Bonus ------- None Cogmind --------- Core Integrity 0/250 Matter 300/300 Energy 250/250 System Corruption 0% Temperature Cool (0) Movement Walking (120) Location -10/Subcaves Parts ------- > --- POWER (1) -------- Ion Engine > --- PROPULSION (2) --- Aluminum Leg Aluminum Leg > --- UTILITY (2) ------ Small Storage Unit > --- WEAPON (2) ------- Small Laser Assault Rifle > --- INVENTORY (8) ---- Aluminum Leg Aluminum Leg Improved Heat Sink EM Pulse Gun Medium Laser Subdweller Laser Light Assault Rifle Peak State ------------ > --- POWER ------------ Light Nuclear Core > --- PROPULSION ------- Wheel Compact Wheel > --- UTILITY ---------- Small Storage Unit Weapon Shielding > --- WEAPON ----------- Medium Laser Assault Rifle > --- INVENTORY -------- Ion Engine Light Treads Light Treads Aluminum Leg Aluminum Leg EM Pulse Gun Assault Rifle Light Assault Rifle [Rating: 9] Favorites ----------- Power Ion Engine Engine Ion Engine Power Core Light Nuclear Core Propulsion Aluminum Leg Leg Aluminum Leg Wheel Compact Wheel Utility Small Storage Unit Storage Small Storage Unit Protection Weapon Shielding Weapon Assault Rifle Energy Gun Medium Laser Ballistic Gun Assault Rifle Build | -11 -10 -10 -10 ------- Run | Yrd Mat Min Sub Slots Evolved . | . . . . Power . | . . . . Propulsion . | . . . . Utility . | . . . . Weapon . | . . . . Parts Attached 18 | 6 1 11 . Power 4 | 1 . 3 . Engine 3 | 1 . 2 . Core 1 | . . 1 . Reactor . | . . . . Propulsion 8 | 2 . 6 . Treads . | . . . . Leg 5 | . . 5 . Wheel 3 | 2 . 1 . Hover . | . . . . Flight . | . . . . Utility 2 | 1 1 . . Device . | . . . . Storage 1 | 1 . . . Processor . | . . . . Hackware . | . . . . Protection 1 | . 1 . . Artifact . | . . . . Weapon 4 | 2 . 2 . Energy Gun 2 | 1 . 1 . Energy Cannon . | . . . . Ballistic Gun 2 | 1 . 1 . Ballistic Cannon . | . . . . Launcher . | . . . . Special Weapon . | . . . . Impact Weapon . | . . . . Slashing Weapon . | . . . . Piercing Weapon . | . . . . Special Melee Weapon . | . . . . Unidentified Prototypes . | . . . . Parts Lost 7 | . . 7 . Power 2 | . . 2 . Propulsion 3 | . . 3 . Utility 1 | . . 1 . Weapon 1 | . . 1 . Highest Loss Streak 2 | . . 2 . To Critical Strikes . | . . . . Average Slot Usage (%) 89 | . 94 90 85 Engine 6 | . 14 2 14 Core 6 | . . 9 . Leg 12 | . . 9 28 Wheel 14 | . 28 16 . Storage 14 | . 14 14 14 Protection 7 | . 8 9 . Energy Gun 11 | . 14 10 14 Ballistic Gun 16 | . 14 17 14 Naked Turns . | . . . . Heaviest Build 15 | 14 15 15 13 Greatest Support 26 | 26 26 26 20 Greatest Overweight (x) 1 | 1 . 1 . Average Overweight (x) . | . . . . Largest Inventory Capacity 8 | 8 8 8 8 Average Capacity 7 | 6 8 8 8 Most Carried 8 | 6 8 8 7 Average Carried 6 | 2 6 6 6 Final Capacity 8 | 8 8 8 8 Final Carried 8 | 6 8 6 7 Class Distribution -------------------- 100% | Mutant Dominant Class ---------------- Mutant | -10/Materials Mutant | -10/Mines Mutant | -10/Subcaves Resources | -11 -10 -10 -10 ----------- Run | Yrd Mat Min Sub Matter Collected 481 | 173 18 290 . Remotely . | . . . . Salvage Created 351 | . 50 301 . Parts 27 | . 6 21 . Haulers Intercepted . | . . . . Recyclers Shooed . | . . . . Parts Field Recycled . | . . . . Retrieved Matter . | . . . . Parts Self-Destructed . | . . . . Prevented . | . . . . Kills | -11 -10 -10 -10 ------- Run | Yrd Mat Min Sub Combat Hostiles Destroyed 10 | . 3 7 . Guns 10 | . 3 7 . Classes Destroyed 3 | . 1 2 . Tunneler 1 | . . 1 . Swarmer 3 | . 3 . . Grunt 7 | . . 7 . Best Kill Streak 5 | . 3 5 . Combat Bots Only 4 | . 3 4 . Max Kills in Single Turn 2 | . 1 2 . Gunslinging 1 | . . 1 . Exploded . | . . . . Melee . | . . . . Uniques/NPCs Destroyed . | . . . . Combat | -11 -10 -10 -10 -------- Run | Yrd Mat Min Sub Hostile Shots Fired 138 | . 11 125 2 Missed 48 | . 3 45 . Damage Taken 1029 | . 64 928 37 Core 252 | . 10 222 20 Absorbed by Shields . | . . . . Redirected to Shielding 51 | . 13 38 . Core Remaining (%) 100 | 100 . . . Volleys Fired 34 | . 4 30 . Largest 2 | . 2 2 . Hottest 70 | . 70 70 . Shots Fired 68 | . 8 60 . Gun 68 | . 8 60 . Cannon . | . . . . Launcher . | . . . . Special . | . . . . Kinetic 37 | . 4 33 . Thermal 31 | . 4 27 . Explosive . | . . . . Electromagnetic . | . . . . Robot Hit Streak 10 | . 3 10 . Robot Miss Streak 2 | . 1 2 . Penetration Max . | . . . . Secondary Targets 3 | . . 3 . Max Gunslinging Chain 1 | . . 1 . Shots Hit Robots 40 | . 5 35 . Core Hits 20 | . 3 17 . Critical Kills . | . . . . Critical Parts Destroyed . | . . . . Critical Strikes . | . . . . Melee Attacks . | . . . . Impact . | . . . . Slashing . | . . . . Piercing . | . . . . Sneak Attacks . | . . . . Combat Hostiles . | . . . . Follow-up Attacks . | . . . . Damage Inflicted 536 | . 66 470 . Guns 536 | . 66 470 . Cannons . | . . . . Explosions . | . . . . Melee . | . . . . Ramming . | . . . . Kinetic 316 | . 28 288 . Thermal 220 | . 38 182 . Explosive . | . . . . Electromagnetic . | . . . . Impact . | . . . . Slashing . | . . . . Piercing . | . . . . Highest Corruption . | . . . . Average Corruption . | . . . . Corruption Purged . | . . . . Corruption Blocked . | . . . . Overload Shots . | . . . . Overflow Damage . | . . . . Projectiles . | . . . . Explosions . | . . . . Melee . | . . . . Knockbacks . | . . . . Impact . | . . . . Kinetic . | . . . . Secondary . | . . . . Self-Inflicted Damage . | . . . . Shots . | . . . . Rammed . | . . . . Targets Rammed . | . . . . Kicked . | . . . . Crushed . | . . . . Highest Temperature 240 | . 36 240 . Average Temperature 79 | . 19 86 . Received Heat Transfer 348 | . . 348 . Siege Activations . | . . . . Robots Corrupted . | . . . . Combat Hostiles . | . . . . Parts Fried . | . . . . Impact Corruptions . | . . . . Robots Melted . | . . . . Combat Hostiles . | . . . . Parts Melted . | . . . . Heat Transferred 618 | . 111 507 . Parts Sabotaged . | . . . . Parts Stolen . | . . . . Parts Stripped . | . . . . Power Chain Reactions . | . . . . Alert | -11 -10 -10 -10 ------- Run | Yrd Mat Min Sub Peak Influence 77 | . 70 77 . Initial 27 | . . 27 . Average 30 | . 27 33 . Maximum Alert Level . | . . . . Low Security (%) 100 | 100 100 100 . Level 1 . | . . . . Level 2 . | . . . . Level 3 . | . . . . Level 4 . | . . . . Level 5 . | . . . . High Security . | . . . . Max Security . | . . . . Squads Dispatched . | . . . . Investigation . | . . . . Extermination . | . . . . Reinforcement . | . . . . Assault . | . . . . Garrison . | . . . . Intercept . | . . . . Searches Triggered . | . . . . Construction Impeded . | . . . . Haulers Reinforced . | . . . . Active Scanning Responses . | . . . . Cargo Convoy Interrupts . | . . . . Stealth | -11 -10 -10 -10 --------- Run | Yrd Mat Min Sub Distress Signals . | . . . . Communications Jammed . | . . . . Distress Signals . | . . . . Times Spotted 21 | . 4 11 6 Peak Tracking Total 4 | . 3 4 . Tactical Retreats 1 | . . 1 . Traps | -11 -10 -10 -10 ------- Run | Yrd Mat Min Sub Traps Triggered . | . . . . Indirectly . | . . . . Trap Hack Attempts . | . . . . Triggered . | . . . . Disarmed . | . . . . Reprogrammed . | . . . . Reused . | . . . . Traps Extracted . | . . . . Installed . | . . . . Triggered . | . . . . Machines | -11 -10 -10 -10 ---------- Run | Yrd Mat Min Sub Machines Disabled . | . . . . Max in Single Turn . | . . . . Machines Repaired . | . . . . Machines Dismantled . | . . . . Machines Sabotaged . | . . . . Overloaded Fab Kills . | . . . . Hacking | -11 -10 -10 -10 --------- Run | Yrd Mat Min Sub Machines Accessed 6 | . 5 . 1 Terminals 4 | . 4 . . Fabricators . | . . . . Repair Stations . | . . . . Recycling Units 1 | . 1 . . Scanalyzers . | . . . . Garrison Access . | . . . . Total Hacks 13 | . 11 . 2 Successful 5 | . 3 . 2 Failed 8 | . 8 . . Catastrophic 3 | . 3 . . Database Lockouts . | . . . . Manual 10 | . 8 . 2 Terminals 10 | . 10 . . Fabricators . | . . . . Repair Stations . | . . . . Recycling Units 1 | . 1 . . Scanalyzers . | . . . . Garrison Access . | . . . . Terminal Hacks 3 | . 1 . 2 Record 2 | . . . 2 Locate Traps 1 | . 1 . . Fabricator Hacks . | . . . . Repair Station Hacks . | . . . . Recycling Unit Hacks . | . . . . Scanalyzer . | . . . . Garrison Access Hacks . | . . . . Unauthorized Hacks 2 | . 2 . . Terminals 1 | . 1 . . Botnet 1 | . 1 . . Fabricators . | . . . . Repair Stations . | . . . . Recycling Units 1 | . 1 . . Monitor 1 | . 1 . . Scanalyzers . | . . . . Garrison Access . | . . . . Data Cores Recovered . | . . . . Used . | . . . . Hacking Detections 4 | . 4 . . Full Trace Events 2 | . 2 . . Feedback Events . | . . . . Feedback Blocked . | . . . . Robot Schematics Acquired . | . . . . Robots Built . | . . . . Authchips . | . . . . Time . | . . . . Total Robot Build Rating . | . . . . Part Schematics Acquired . | . . . . Parts Built . | . . . . Authchips . | . . . . Time . | . . . . Total Part Build Rating . | . . . . Parts Repaired . | . . . . Time . | . . . . Parts Recycled . | . . . . Recycled Matter . | . . . . Retrieved Matter . | . . . . Retrieved Components . | . . . . Parts Scanalyzed . | . . . . Part Schematics Acquired . | . . . . Parts Damaged . | . . . . Bothacking | -11 -10 -10 -10 ------------ Run | Yrd Mat Min Sub Used RIF Installer . | . . . . Robots Hacked . | . . . . Non-combat . | . . . . Combat . | . . . . Robot Hacks Applied . | . . . . Relay Couplers Released . | . . . . Fabnet Peak Effective % . | . . . . Robots Rewired . | . . . . Allies Hacked . | . . . . Hacks Repelled . | . . . . Allies | -11 -10 -10 -10 -------- Run | Yrd Mat Min Sub Total Allies . | . . . . Largest Group . | . . . . Highest-Rated Group . | . . . . Highest-Rated Ally . | . . . . Total Orders . | . . . . Ally Attacks . | . . . . Total Damage . | . . . . Kills . | . . . . Allies Corrupted . | . . . . Allies Melted . | . . . . Intel | -11 -10 -10 -10 ------- Run | Yrd Mat Min Sub Robot Analysis Total . | . . . . Derelict Logs Recovered . | . . . . Drone Launches . | . . . . Drone Recoveries . | . . . . Exploration | -11 -10 -10 -10 ------------- Run | Yrd Mat Min Sub Turns Passed 1088 | 48 122 707 211 Spaces Moved 478 | 39 113 160 166 Core 9 | 9 . . . Treads . | . . . . Legs 260 | . . 94 166 Wheels 209 | 30 113 66 . Hover . | . . . . Flight . | . . . . Fastest Speed 50 | 50 90 90 120 Average Speed 106 | 85 90 110 120 Slowest Speed 190 | 100 90 190 120 Overloaded Moves . | . . . . Propulsion Burnouts . | . . . . Robots Hopped . | . . . . Cave-ins Triggered . | . . . . Exploration Rate (%) 16 | 3 24 26 12 Regions Visited 3 Branch Regions 2 Pre-discovered Areas . | . . . . Known Exits Taken . | . . . . Unknown Exits Taken 3 | 1 1 1 . Scrap Searched 1 | . . . 1 Spaces Dug . | . . . . Terrain Destroyed . | . . . . Melee . | . . . . Projectile . | . . . . AOE . | . . . . Terrain Rammed . | . . . . Walls Destroyed . | . . . . Machines Disabled . | . . . . Actions | -11 -10 -10 -10 --------- Run | Yrd Mat Min Sub Total 980 | 50 124 629 177 Wait 436 | . 5 421 10 Move 475 | 38 112 159 166 Hop . | . . . . Pick Up 11 | 6 2 2 1 Fast Attach 14 | 6 1 7 . Attach 2 | . . 2 . Detach . | . . . . Swap 2 | . . 2 . Drop 6 | . . 6 . Fire 34 | . 4 30 . Melee . | . . . . Ram . | . . . . Kick . | . . . . Crush . | . . . . Escape Stasis . | . . . . Rewire . | . . . . Trap . | . . . . Miscellaneous . | . . . . Route ------- -11/Scrapyard -10/Materials -10/Mines -10/Subcaves History --------- Turn | Location | Event 17 | -11/Scrapyard | Discovered new exit (range 16) 49 | -11/Scrapyard | Entered Materials 146 | -10/Materials | Discovered new exit (range 16) 171 | -10/Materials | Entered Mines 241 | -10/Mines | Excavation squad dispatched 241 | -10/Mines | A large section of the Mines collapsed 311 | -10/Mines | Build established: Mutant 491 | -10/Mines | Excavation squad dispatched 656 | -10/Mines | Core integrity fell below 50% 741 | -10/Mines | Excavation squad dispatched 796 | -10/Mines | Core integrity fell below 20% 876 | -10/Mines | Discovered new exit (range 3) 878 | -10/Mines | Entered Subcaves 964 | -10/Subcaves | Visited Clippyterm 1086 | -10/Subcaves | Ambushed by swarm of Subdwellers 1089 | -10/Subcaves | Destroyed by ZT-68Y(R) with Subdweller Machine Gun Last Messages --------------- cavern ceiling. PC-8ZX(R) comes tumbling into view. 01086_ PQ-S96(h): "The Subs are coming!" 01086_ HV Slug penetrates PC-8ZX(R). 01086_ PC-8ZX(R) destroyed. 01088_ Y1-US9(R) emerges from the Twisted Machinery. 01088_ J8-F4P(R) emerges from the Twisted Machinery. 01088_ VE-LB5(g): "Sorry we're late! Had another grouchy Sub to deal with. Who's the new fellow?" 01089_ ZT-68Y(R) emerges from the Twisted Machinery. 01089_ OC-BIT(R) emerges from the Twisted Machinery. 01089_ VF-INI(R) emerges from the Twisted Machinery. 01089_ Subatomizers dissect the Disposable Heat Sink. Map ----- +----------------------------------------------------+ | ??????## ### # #######??????????????????? | | ??????# "" ##????????????????????????? | | ??????####" ##?????????????????????????? | | ?????????## ##????######???????????????? | | ??????????## ###?## #???????????????? | | ??????###### #?# #???????????????? | | ??????# #?# #???????????????? | | ?####?# #?# ##??????????????? | | ## #?## ##?### #??????????????? | | #### ####?# ##??????????????? | | ### ### ##???????????????? | | #??### ##????????????????? | | #??#### #?????????????????? | | ### ## ## #?????????????????? | | ## ## ##????????????????? | | # ######### #????????????????? | | #### #####?## # ##????????????????? | | ##?# #"""### #????????????????? | | % ### ##"" ## #????????????????? | | ###"X ##????????????????? | | ! # ###"" ## ## #?????????????????? | | # ##"""## ### #????????????????? | | ## ####### ####????????????????? | | #### #???### [ ###?????????????????? | | ##### ##?## !RhRR###???????????????? | | ### ### """@ #???????????????? | | ## # # gg R"#R #???????????????? | | g ##?## #??????????????? | | ###???## #?????????????? | | # ##??????## ##?????????????? | | ###### ##### #?????????##??????????????? | | ????# #??##" ??????????????????????? | | ????# #???## #?????????????????????? | | ### ##????# ##?????????????????????? | | #???? ## #??????????????????????? | | " ##???? ##?##??????????????????????? | | " """"###???? ##??????????????????????????? | | """"###??????##????????????????????????????? | | #""""???????????????????????????????????????? | | # "" ???????????????????????????????????????? | | ???"????????????????????????????????????????? | | ????????????????????????????????????????????? | | ????????????????????????????????????????????? | | ????????????????????????????????????????????? | | ????????????????????????????????????????????? | | ????????????????????????????????????????????? | | ????????????????????????????????????????????? | | ????????????????????????????????????????????? | | ????????????????????????????????????????????? | | ????????????????????????????????????????????? | +----------------------------------------------------+ Best States ------------- Heat Dissipation 25 Energy Generation 14 Energy Capacity 250 Matter Stores 300 Matter Capacity 300 Sight Range 16 Terrain Scan Density 10 Weapon Shielding 33 Evasion (%) 55 Item Schematics ----------------- None Robot Schematics ------------------ None Fabricated ------------ Nothing Alien Tech Used ----------------- None Achievements -------------- None Challenges ------------ None Game ------ Seed MinesnifferAssaultDatajack Manual? 0 Play Time 00:10:25 Cumulative 21.7 hours Start 2024.03.31 @ 14:34:27 End 2024.03.31 @ 14:43:01 Sessions 1 Manual Loads 0 Difficulty Rogue Special Mode None Game No. 47 Rogue 47 Adventurer 0 Explorer 0 Win Type - Total 0 Types 0/0/0/0/0/0/0/0/0 Lore% 21 Gallery% 30 Achievement% 21 Wizard Run 0 Options --------- Layout 1 ASCII 0 Keyboard 0 Movement Numpad Keybinds 0 Fullscreen 1 Font 24/Terminus Map View 50x35 Zoom Use 0% Tactical HUD 1 Map Filters NONE Filters NONE Steam 1 RUN: f85c41e0-9f6e-42a0-a0f2-bcdb4653dedf